Workbook

Sheet A-Budget Summary
B1: KENT SCHOOL DISTRICT #415
B2: 2019-20 BUDGET DEVELOPMENT | I2: BUDGET BUILDER 2019-20
B3: PROGRAM, DEPARTMENT and BUILDING ALLOCATIONS
C6: Select from pull-down menus: | F6: Included worksheets:
B7: Program Manager: | C7: Popp, Rona | F7: TAB A - Budget Summary
B8: Program: | C8: Title 1 - Prog 5150 | F8: TAB B - Administrative staffing detail and costs
B9: Dept/Location: | C9: 719-Student & Family Support | F9: TAB C - Certificated/Instructional staffing detail and costs
B10: Building Location (if applicable): | C10: 136-Kent | F10: TAB D - Classified staffing detail and costs
B11: Cost Center: | C11: Kent | F11: TAB E - MSOC detail and costs
B13: Prgm Start Date: | C13: 2019-09-01
B14: Prgm End Date: | C14: 2020-08-31
B16: Source of Funding:
B17: Revenue Type:
B22: 2019-20 Budget Allocation: | C22: 297992 | D22: Enter BUDGET ALLOCATION here
B24: Expenditure Budget:
B25: Salaries & Benefits: | D25: FTE:
B26: Certificated Staff | C26: ='B-ADMIN Staff'!Q39+'C-CERT Staff'!R49 -> 133321.2912 | D26: ='B-ADMIN Staff'!P25+'C-CERT Staff'!P24 -> 1
B27: Classified Staff | C27: ='D-CLASS Staff'!P53 -> 122444.366 | D27: ='D-CLASS Staff'!O29 -> 1.635576923
B28: Total Personnel Costs | C28: =SUM(C26:C27) -> 255765.6572 | D28: =SUM(D26:D27) -> 2.635576923
B31: Total Non-Personnel Costs / MSOC | C31: =MSOC!C29 -> 42226
B33: Indirect Rate | C33: 0 | D33: Enter indirect rate here | H33: Last Updated: | I33: =TODAY() -> 2020-04-03
B34: Indirect Costs | C34: =(C22-ROUNDUP(C22/(100%+C33),0)) -> 0
B36: Total Expenditure Budget:
B37: Personnel, Non-Personnel, Indirects | C37: =C28+C31+C34 -> 297991.6572 | E37: Submitted By: | F37: Mickey Mouse | G37: Date: | H37: 2019-05-17 | I37: (Preparer)
E38: Reviewed By: | F38: Minnie Mouse | G38: Date: | I38: (Reviewer)
B39: (Over) / Under Allocated | C39: =(C22-C37) -> 0.3427506944 | E39: Approved By: | F39: Rona Popp | G39: Date: | I39: (Prgm Mgr)
E40: Received By: | G40: Date: | I40: (Budget/Finance)

Sheet C-CERT Staff
B1: PRGM MGR | C1: ='A-Budget Summary'!C7 -> Popp, Rona
B2: PROGRAM | C2: ='A-Budget Summary'!C8 -> Title 1 - Prog 5150
B3: LOC/DEPT | C3: ='A-Budget Summary'!C9 -> 719-Student & Family Support
B4: LOC/SCHOOL | C4: ='A-Budget Summary'!C10 -> 136-Kent
B5: COST CENTER | C5: ='A-Budget Summary'!C11 -> Kent
B7: CERTIFICATED INSTRUCTIONAL SALARY DETAIL
D9: Employee | G9: PLEASE ENTER THIS DATA | N9: Total Base | R9: Total Salary | T9: Account Code
B10: Position/Title | D10: Last Name | E10: First Name | G10: Days/ Yr (187) | I10: Hrs/Day (7.5 = 1.0) | K10: FY19 Hourly Rate | M10: Hourly Rate + COLA | N10: Salary | P10: FTE | T10: Prgm | U10: Act | V10: Obj | W10: Loc | X10: CC | Y10: Proj | Z10: Sub Fund | AA10: Commt Stpd | AB10: Calc Stpd
B11: SALARIES: | M11: 0.045
B12: Literacy Specialist | D12: Unfilled | G12: 187 | I12: 7.5 | K12: 58.89 | M12: =K12*(100%+$M$11) -> 61.54005 | P12: =I12/7.5 -> 1 | R12: =(G12*I12*M12) -> 86309.92012 | T12: 5150 | U12: 27-Teaching | V12: 2000 | W12: 136 | X12: 1360 | Y12: 0 | Z12: 0 | AA12: 2600 | AB12: =AA12*P12 -> 2600
G13: 0 | H13: 0 | I13: 0 | K13: 0 | M13: =K13*(100%+$M$11) -> 0 | P13: =I13/7.5 -> 0 | R13: =(G13*I13*M13) -> 0 | U13: 27-Teaching | V13: 2000 | Y13: 0 | Z13: 0
G14: 0 | I14: 0 | K14: 0 | M14: 0 | P14: 0 | R14: 0 | U14: 27-Teaching | V14: 2000 | Y14: 0 | Z14: 0
G15: 0 | I15: 0 | K15: 0 | M15: =K15*(100%+$M$11) -> 0 | P15: =I15/7.5 -> 0 | R15: =(G15*I15*M15) -> 0 | U15: 27-Teaching | V15: 2000 | Y15: 0 | Z15: 0
G16: 0 | I16: 0 | K16: 0 | M16: 0 | P16: 0 | R16: 0 | U16: 27-Teaching | V16: 2000 | Y16: 0 | Z16: 0
G17: 0 | I17: 0 | K17: 0 | M17: 0 | P17: 0 | R17: 0 | U17: 27-Teaching | V17: 2000 | Y17: 0 | Z17: 0
G18: 0 | I18: 0 | K18: 0 | M18: 0 | P18: 0 | R18: 0 | U18: 27-Teaching | V18: 2000 | Y18: 0 | Z18: 0
G19: 0 | I19: 0 | K19: 0 | M19: 0 | P19: 0 | R19: 0 | U19: 27-Teaching | V19: 2000 | Y19: 0 | Z19: 0
G20: 0 | I20: 0 | K20: 0 | M20: =K20*(100%+$M$11) -> 0 | P20: =I20/7.5 -> 0 | R20: =(G20*I20*M20) -> 0 | U20: 27-Teaching | V20: 2000 | Y20: 0 | Z20: 0
G21: 0 | I21: 0 | K21: 0 | M21: 0 | P21: 0 | R21: 0 | U21: 27-Teaching | V21: 2000 | Y21: 0 | Z21: 0
G22: 0 | I22: 0 | K22: 0 | M22: 0 | N22: 0 | P22: 0 | R22: 0 | U22: 27-Teaching | V22: 2000 | Y22: 0 | Z22: 0
G23: 0 | I23: 0 | K23: 0 | M23: 0 | N23: 0 | P23: 0 | R23: 0 | U23: 27-Teaching | V23: 2000 | Y23: 0 | Z23: 0
G24: Subtotal | I24: =SUM(I12:I23) -> 7.5 | K24: =IF(K12=0,0,(AVERAGEIF(K12:K23,">0"))) -> 58.89 | M24: =IF(M12=0,0,(AVERAGEIF(M12:M23,">0"))) -> 61.54005 | P24: =SUM(P12:P23) -> 1 | R24: =SUM(R12:R23) -> 86309.92012
K25: Avg Rate | M25: Avg Rate | AB25: =SUM(AB12:AB24) -> 2600
B28: ADDITIONAL SALARY COSTS:
A29: Auto-Calc! | B29: Principal Effective Education (3 Days) | R29: =(M24*P24*7.5)*3 -> 1384.651125 | T29: 5150 | U29: 27-Teaching | V29: 2171 | W29: 136 | X29: 3490 | Y29: 0 | Z29: 0
A30: Auto-Calc! | B30: Professional Learning/Enrichment Stipend | R30: =IF(R24=0,0,R24*0.0509) -> 4393.174934 | T30: 5150 | U30: 27-Teaching | V30: 2170 | W30: 136 | X30: 3490 | Y30: 0 | Z30: 0
B32: OTHER SALARY ITEMS:
B33: Special Projects | R33: 0 | T33: 5150 | U33: 27-Teaching | V33: 2060 | W33: 136 | X33: 1360 | Y33: 0 | Z33: 0
B34: Commitment Stipend | D34: $2,000 or $2,600, depending on seniority; see input note | R34: =AB25 -> 2600 | T34: 5150 | U34: 27-Teaching | V34: 2241 | W34: 136 | X34: =3710 -> 3710 | Y34: 0 | Z34: 0
B35: Other Stipends | R35: 0 | T35: 5150 | U35: 27-Teaching | V35: 0 | W35: 136 | Y35: 0 | Z35: 0
A36: Auto-Calc! | B36: Cert Substitutes - General Purpose (Estimated based on FTE) | R36: =SUM(P24*154)*4 -> 616 | T36: 5150 | U36: 27-Teaching | V36: 2010 | W36: 136 | Y36: 0 | Z36: 0
B37: Temporary Help | R37: 0 | T37: 5150 | U37: 27-Teaching | V37: 2145 | W37: 136 | Y37: 0 | Z37: 0
B38: Cert Substitutes-Prof Dev (Act 31 only) | R38: 0 | T38: 5150 | U38: 31-Prof Dev | V38: 2210 | W38: 136 | X38: 0 | Y38: 0 | Z38: 0
P39: Subtotal | R39: =SUM(R29:R38) -> 8993.826059
P40: Total Instructional Salaries | R40: =R24+R39 -> 95303.74618
B42: BENEFITS:
A43: Auto-Calc! | B43: Payroll Taxes - Salary, PEE, PLE, Special Proj, Stipends | D43: =SAL_BEN_INFO!C9 -> 0.25147 | R43: =SUM(R24+R29+R30+R33+R34+R35)*D43 -> 23811.12753 | T43: 5150 | U43: 27-Teaching | V43: 4200 | W43: 136 | X43: 1360 | Y43: 0 | Z43: 0
A44: Auto-Calc! | B44: Payroll Taxes - Subs,Temp | D44: =SAL_BEN_INFO!C11 -> 0.08347 | R44: =SUM(R37+R36)*D44 -> 51.41752 | T44: 5150 | U44: 27-Teaching | V44: 4200 | W44: 136 | X44: 1360 | Y44: 0 | Z44: 0
A45: Auto-Calc! | B45: Payroll Taxes - Subs,Temp | D45: =SAL_BEN_INFO!C11 -> 0.08347 | R45: =SUM(R38)*D45 -> 0 | T45: 5150 | U45: 31-Prof Dev | V45: 4200 | W45: 136 | X45: 1360 | Y45: 0 | Z45: 0
A46: Auto-Calc! | B46: Medical/Dental/Vision | D46: =SAL_BEN_INFO!D13 -> 14155 | R46: =P24*D46 -> 14155 | T46: 5150 | U46: 27-Teaching | V46: 4200 | W46: 136 | X46: 1360 | Y46: 0 | Z46: 0
P47: Total Instructional Benefits | R47: =SUM(R43:R46) -> 38017.54505
P49: Total Instructional Salaries & Benefits | R49: =R40+R47 -> 133321.2912

Sheet D-CLASS Staff
B1: PRGM MGR | C1: ='A-Budget Summary'!C7 -> Popp, Rona
B2: PROGRAM | C2: ='A-Budget Summary'!C8 -> Title 1 - Prog 5150
B3: LOC/DEPT | C3: ='A-Budget Summary'!C9 -> 719-Student & Family Support
B4: LOC/SCHOOL | C4: ='A-Budget Summary'!C10 -> 136-Kent
B5: COST CENTER | C5: ='A-Budget Summary'!C11 -> Kent
B7: CLASSIFIED SALARY DETAIL
B9: Position | D9: Employee | G9: PLEASE ENTER THIS DATA | P9: Total Salary | R9: Account Code
B10: Title | D10: Last Name | E10: First Name | G10: Days/Yr | I10: Hrs/ Day | K10: FY19 Hourly Rate | M10: Hourly Rate + COLA | O10: FTE | R10: Prgm | S10: Act | T10: Obj | U10: Loc | V10: CC | W10: Proj | X10: Sub Fund
B11: SALARIES: | M11: 0.05
G12: 189 | M12: =K12*(100%+$M$11) -> 0 | O12: =SUM(G12*I12)/2080 -> 0 | P12: =(G12*I12*M12) -> 0 | R12: 5150 | S12: 27-Teaching | T12: 3000 | U12: 136 | V12: 1360 | W12: 0 | X12: 0
B13: Title I Paraeducator | D13: Unfilled | G13: 189 | I13: 6 | K13: 19.86 | M13: =K13*(100%+$M$11) -> 20.853 | O13: =SUM(G13*I13)/2080 -> 0.5451923077 | P13: =(G13*I13*M13) -> 23647.302 | R13: 5150 | S13: 27-Teaching | T13: 3000 | U13: 136 | V13: 1360 | W13: 0 | X13: 0
B14: Title I Paraeducator | D14: Bird | E14: Big | G14: 189 | I14: 6 | K14: 20.82 | M14: =K14*(100%+$M$11) -> 21.861 | O14: =SUM(G14*I14)/2080 -> 0.5451923077 | P14: 24790.374 | R14: 5150 | S14: 27-Teaching | T14: 3000 | U14: 136 | V14: 1360 | W14: 0 | X14: 0
B15: Title I Paraeducator | D15: Duck | E15: Donald | G15: 189 | I15: 6 | K15: 20.82 | M15: 21.861 | O15: =SUM(G15*I15)/2080 -> 0.5451923077 | P15: 24790.374 | R15: 5150 | S15: 27-Teaching | T15: 3000 | U15: 136 | V15: 1360 | W15: 0 | X15: 0
G16: 189 | I16: 0 | K16: 0 | M16: 0 | O16: 0 | P16: 0 | S16: 27-Teaching | T16: 3000 | W16: 0 | X16: 0
G17: 0 | I17: 0 | K17: 0 | M17: 0 | O17: =SUM(G17*I17)/2080 -> 0 | P17: 0 | S17: 27-Teaching | T17: 3000 | W17: 0 | X17: 0
G18: 0 | I18: 0 | K18: 0 | M18: 0 | O18: 0 | P18: 0 | S18: 27-Teaching | T18: 3000 | W18: 0 | X18: 0
G19: 0 | I19: 0 | K19: 0 | M19: 0 | O19: =SUM(G19*I19)/2080 -> 0 | P19: 0 | S19: 27-Teaching | T19: 3000 | W19: 0 | X19: 0
G20: 0 | I20: 0 | K20: 0 | M20: 0 | O20: =SUM(G20*I20)/2080 -> 0 | P20: 0 | S20: 27-Teaching | T20: 3000 | W20: 0 | X20: 0
G21: 0 | I21: 0 | K21: 0 | M21: 0 | O21: 0 | P21: 0 | S21: 27-Teaching | T21: 3000 | W21: 0 | X21: 0
G22: 0 | I22: 0 | K22: 0 | M22: =K22*(100%+$M$11) -> 0 | O22: =SUM(G22*I22)/2080 -> 0 | P22: =(G22*I22*M22) -> 0 | S22: 27-Teaching | T22: 3000 | W22: 0 | X22: 0
G23: 0 | I23: 0 | K23: 0 | M23: 0 | O23: 0 | P23: 0 | S23: 27-Teaching | T23: 3000 | W23: 0 | X23: 0
G24: 0 | I24: 0 | K24: 0 | M24: 0 | O24: 0 | P24: 0 | S24: 27-Teaching | T24: 3000 | W24: 0 | X24: 0
G25: 0 | I25: 0 | K25: 0 | M25: 0 | O25: 0 | P25: 0 | S25: 27-Teaching | T25: 3000 | W25: 0 | X25: 0
G26: 0 | I26: 0 | K26: 0 | M26: 0 | O26: 0 | P26: 0 | S26: 27-Teaching | T26: 3000 | W26: 0 | X26: 0
G27: 0 | I27: 0 | K27: 0 | M27: 0 | O27: 0 | P27: =(G27*I27*K27) -> 0 | S27: 27-Teaching | T27: 3000 | W27: 0 | X27: 0
G29: Subtotal | I29: =SUM(I12:I27) -> 18 | K29: =IF(K12=0,0,(AVERAGEIF(K12:K27,">0"))) -> 0 | M29: =IF(M12=0,0,(AVERAGEIF(M12:M27,">0"))) -> 0 | O29: =SUM(O12:O27) -> 1.635576923 | P29: =SUM(P12:P27) -> 73228.05
I30: =IF(I12=0,0,(AVERAGEIF(I12:I27,">0"))) -> 0 | K30: Avg Rate | M30: Avg Rate
B31: OTHER SALARY ITEMS: | I31: Avg Hrs/Day
A32: Auto-Calc! | B32: Addt'l Salary - Effective Ed (Act 31 only) | P32: =SUM(I29*4)*M29 -> 0 | R32: 5150 | S32: 31-Prof Dev | T32: 3171 | U32: 136 | V32: 3480 | W32: 0 | X32: 0
B33: Extra Time | S33: 27-Teaching | T33: 3020 | W33: 0 | X33: 0
B34: Overtime | S34: 27-Teaching | T34: 3050 | W34: 0 | X34: 0
B35: Commitment Stipend (Eliminated for Non-Rep/Prof Tech positions, 2019-20) | P35: 0 | S35: 27-Teaching | T35: 3240 | V35: 3750 | W35: 0 | X35: 0
B36: Stipend | P36: 0 | S36: 27-Teaching | T36: 0 | W36: 0 | X36: 0
B37: Substitutes-Paraeducators | P37: 0 | S37: 27-Teaching | T37: 3145 | W37: 0 | X37: 0
B38: Substitutes-Office Staff | P38: 0 | S38: 27-Teaching | T38: 3010 | W38: 0 | X38: 0
B39: Substitutes-Sick Leave | S39: 27-Teaching | T39: 3140 | W39: 0 | X39: 0
B40: Substitutes-Prof Dev (Act 31 only) | S40: 31-Prof Dev | T40: 3210 | W40: 0 | X40: 0
I41: Subtotal | P41: =SUM(P32:P40) -> 0
O42: Total Classified Salaries | P42: =P29+P41 -> 73228.05
B44: BENEFITS:
A45: Auto-Calc! | B45: Payroll Taxes - Salary, Extra Time, OT, Add'l Sal, Stipends | D45: =SAL_BEN_INFO!C10 -> 0.22827 | P45: =SUM(P29+P33+P34+P35+P36)*D45 -> 16715.76697 | R45: 5150 | S45: 27-Teaching | T45: 4300 | U45: 136 | V45: 1360 | W45: 0 | X45: 0
A46: Auto-Calc! | B46: Payroll Taxes - Effective Ed Act 31 | D46: =SAL_BEN_INFO!C10 -> 0.22827 | P46: =SUM(P32)*D46 -> 0 | R46: 5150 | S46: 31-Prof Dev | T46: 4300 | U46: 136 | V46: 1360 | W46: 0 | X46: 0
A47: Auto-Calc! | B47: Payroll Taxes - Subs,Temp,other | D47: =SAL_BEN_INFO!C11 -> 0.08347 | P47: =SUM(P37+P38+P39)*D47 -> 0 | R47: 5150 | S47: 27-Teaching | T47: 4300 | U47: 136 | V47: 1360 | W47: 0 | X47: 0
A48: Auto-Calc! | B48: Payroll Taxes - Subs,Temp,other | D48: =SAL_BEN_INFO!C12 -> 0.08347 | P48: =SUM(P40)*D48 -> 0 | R48: 5150 | S48: 31-Prof Dev | T48: 4300 | U48: 136 | V48: 1360 | W48: 0 | X48: 0
A49: Auto-Calc! | B49: Medical/Dental/Vision | D49: =SAL_BEN_INFO!D14 -> 19871 | P49: =O29*D49 -> 32500.54904 | R49: 5150 | S49: 27-Teaching | T49: 4300 | U49: 136 | V49: 1360 | W49: 0 | X49: 0
O50: Total Classified Benefits | P50: =SUM(P45:P49) -> 49216.31601
O53: Total Classified Salaries & Benefits | P53: =P42+P50 -> 122444.366

Sheet MSOC
B1: PRGM MGR | C1: ='A-Budget Summary'!C7 -> Popp, Rona
B2: PROGRAM | C2: ='A-Budget Summary'!C8 -> Title 1 - Prog 5150
B3: LOC/DEPT | C3: ='A-Budget Summary'!C9 -> 719-Student & Family Support
B4: LOC/SCHOOL | C4: ='A-Budget Summary'!C10 -> 136-Kent
B5: COST CENTER | C5: ='A-Budget Summary'!C11 -> Kent
B7: Materials, Supplies, Oper Costs (MSOC) DETAIL
B9: ENTER REQUESTED BUDGET - | E9: Account Code | L9: List expenditure description, detail, etc. as needed:
B10: Object/Description | C10: Amount | E10: Prgm | F10: Act | G10: Obj | H10: Loc | I10: CC | J10: Proj
B11: Enter amounts in categories shown below, or select other Obj/Category from Pull-Down menus:
B12: 0490 - KSD-Food Services | C12: 0 | E12: 5150 | F12: 27-Teaching | G12: 490 | H12: 136 | I12: 1360 | J12: 0
B13: 0590 - KSD-Student Transportation | C13: 4726 | E13: 5150 | F13: 27-Teaching | G13: 590 | H13: 136 | I13: 1360 | J13: 0 | L13: Transportation for extended learning
B14: 0730 - KSD-Print Shop | C14: 500 | E14: 5150 | F14: 27-Teaching | G14: 730 | H14: 136 | I14: 1360 | J14: 0
B15: 5000 - General Materials & Supplies | C15: 17000 | E15: 5150 | F15: 27-Teaching | G15: 5000 | H15: 136 | I15: 1360 | J15: 0 | L15: low level literacy books
B16: 5010 - Food & Beverage | C16: 0 | E16: 5150 | F16: 27-Teaching | G16: 5010 | H16: 136 | I16: 1360 | J16: 0
B17: 5080 - Postage | C17: 0 | E17: 5150 | F17: 27-Teaching | G17: 5080 | H17: 136 | I17: 1360 | J17: 0
B18: 5700 - Textbooks (Act 33 only) | C18: 0 | E18: 5150 | F18: 33-Curriculum | G18: 5700 | H18: 136 | I18: 1360 | J18: 0
B19: 5710 - Clsrm Resource Matl's (Act 33 only) | C19: 0 | E19: 5150 | F19: 33-Curriculum | G19: 5710 | H19: 136 | I19: 1360 | J19: 0
B20: 5900 - Theft Sensitive Items | C20: 0 | E20: 5150 | F20: 27-Teaching | G20: 5900 | H20: 136 | I20: 1360 | J20: 0
B21: 7000 - Contractual Services | C21: 15000 | E21: 5150 | F21: 27-Teaching | G21: 7000 | H21: 136 | I21: 1360 | J21: 0 | L21: Literacy Guest speaker/coach
B22: 7030 - Personal Services Contracts | E22: 5150 | F22: 27-Teaching | G22: 7030 | H22: 136 | I22: 1360 | J22: 0
B23: 7050 - Registration/Other Fees | C23: 5000 | E23: 5150 | F23: 27-Teaching | G23: 7050 | H23: 136 | I23: 1360 | J23: 0 | L23: Conference fees
B24: 8000 - Out-of-District Travel | C24: 0 | E24: 5150 | F24: 27-Teaching | G24: 8000 | H24: 136 | I24: 1360 | J24: 0
B25: 8010 - In-District Travel | C25: 0 | E25: 5150 | F25: 27-Teaching | G25: 8010 | H25: 136 | I25: 1360 | J25: 0
B26: 9000 - Capital Equipment > $5,000 | C26: 0 | E26: 5150 | F26: 27-Teaching | G26: 9000 | H26: 136 | I26: 1360 | J26: 0
C27: 0 | E27: 5150 | F27: 27-Teaching | G27: 0 | H27: 136 | I27: 1360 | J27: 0
C28: 0 | E28: 5150 | F28: 27-Teaching | G28: 0 | H28: 136 | I28: 1360 | J28: 0
B29: Total Non-Personnel | C29: =SUM(C12:C28) -> 42226

Sheet B-ADMIN Staff
B1: PRGM MGR | C1: ='A-Budget Summary'!C7 -> Popp, Rona
B2: PROGRAM | C2: ='A-Budget Summary'!C8 -> Title 1 - Prog 5150
B3: LOC/DEPT | C3: ='A-Budget Summary'!C9 -> 719-Student & Family Support
B4: LOC/SCHOOL | C4: ='A-Budget Summary'!C10 -> 136-Kent
B5: COST CENTER | C5: ='A-Budget Summary'!C11 -> Kent
B7: CERTIFICATED ADMINISTRATIVE SALARY DETAIL
B9: Position | D9: Employee | H9: PLEASE ENTER THIS DATA | Q9: Calculated | S9: Account Code
B10: Title | D10: Last Name | F10: First Name | H10: Days/Yr | J10: Hrs/Day | L10: Total Base Salary | N10: Base Salary + COLA | P10: FTE | Q10: Salary | S10: Prgm | T10: Act | U10: Obj | V10: Loc | W10: CC | X10: Proj | Y10: Sub Fund
B11: SALARIES: | N11: 0
H12: 260 | J12: 0 | L12: 0 | N12: =L12*(100%+$N$11) -> 0 | P12: =SUM(H12*J12)/2080 -> 0 | Q12: =(N12*P12) -> 0 | T12: 21-Supervision | U12: 2000 | X12: 0 | Y12: 0
H13: 260 | J13: 0 | L13: 0 | N13: =L13*(100%+$N$11) -> 0 | P13: 0 | Q13: =(N13*P13) -> 0 | T13: 21-Supervision | U13: 2000 | X13: 0 | Y13: 0
H14: 260 | J14: 0 | L14: 0 | N14: 0 | P14: 0 | Q14: 0 | T14: 21-Supervision | U14: 2000 | X14: 0 | Y14: 0
H15: 260 | J15: 0 | L15: 0 | N15: 0 | P15: 0 | Q15: 0 | T15: 21-Supervision | U15: 2000 | X15: 0 | Y15: 0
H16: 260 | J16: 0 | L16: 0 | N16: 0 | P16: 0 | Q16: 0 | T16: 21-Supervision | U16: 2000 | X16: 0 | Y16: 0
H17: 260 | J17: 0 | L17: 0 | N17: 0 | P17: 0 | Q17: 0 | T17: 21-Supervision | U17: 2000 | X17: 0 | Y17: 0
H18: 260 | J18: 0 | L18: 0 | N18: 0 | P18: 0 | Q18: 0 | T18: 21-Supervision | U18: 2000 | X18: 0 | Y18: 0
H19: 260 | J19: 0 | L19: 0 | N19: =L19*(100%+$N$11) -> 0 | P19: =SUM(H19*J19)/2080 -> 0 | Q19: =(N19*P19) -> 0 | T19: 21-Supervision | U19: 2000 | X19: 0 | Y19: 0
H20: 260 | J20: 0 | L20: 0 | N20: 0 | P20: 0 | Q20: 0 | T20: 21-Supervision | U20: 2000 | X20: 0 | Y20: 0
H21: 260 | J21: 0 | L21: 0 | N21: 0 | P21: 0 | Q21: 0 | T21: 21-Supervision | U21: 2000 | X21: 0 | Y21: 0
H22: 260 | J22: 0 | L22: 0 | N22: 0 | P22: 0 | Q22: 0 | T22: 21-Supervision | U22: 2000 | X22: 0 | Y22: 0
H23: 260 | J23: 0 | L23: 0 | N23: 0 | P23: 0 | Q23: 0 | T23: 21-Supervision | U23: 2000 | X23: 0 | Y23: 0
J25: Subtotal | P25: =SUM(P12:P23) -> 0 | Q25: =SUM(Q12:Q23) -> 0
B27: OTHER SALARY ITEMS: | O27: =SUM(O12:O25) -> 0
B28: Commitment Stipend (Eliminated for Non-Rep positions 2019-20) | Q28: 0 | T28: 21-Supervision | U28: 2241 | W28: 3710 | X28: 0 | Y28: 0
B29: TSA (Tax Sheltered Annuity) | Q29: 0 | T29: 21-Supervision | U29: 2280 | W29: 2255 | X29: 0 | Y29: 0
J30: Subtotal | Q30: =Q29 -> 0
P32: Total Administrative Salaries | Q32: =Q25+Q30 -> 0
B34: BENEFITS:
A35: Auto-Calc! | B35: Payroll Taxes - Base Salary | D35: =SAL_BEN_INFO!C9 -> 0.25147 | Q35: =(Q32*D35) -> 0 | T35: 21-Supervision | U35: 4200 | X35: =X12 -> 0 | Y35: 0
A36: Auto-Calc! | B36: Medical/Dental/Vision | D36: =SAL_BEN_INFO!D13 -> 14155 | Q36: =D36*P25 -> 0 | T36: 21-Supervision | U36: 4200 | X36: 0 | Y36: 0
P37: Total Administrative Benefits | Q37: =Q35+Q36 -> 0
P39: Total Administrative Salaries & Benefits | Q39: =Q32+Q37 -> 0

Sheet SAL_BEN_INFO
A1: AVERAGE SALARY and BENEFIT RATES
A2: 2019-2020
A3: As of 3/12/19
C7: Mandatory Benefits
C8: Rate | D8: Amount
A9: Certificated Staff | C9: 0.25147
A10: Classified Staff | C10: 0.22827
A11: Certificated Hourly, Extra-Time, Substitutes | C11: 0.08347
A12: Classified Hourly, Extra-Time, Substitutes | C12: 0.08347
A13: Medical Benefits - Amount for 1.0 FTE / CERT | D13: 14155
A14: Medical Benefits - Amount for 1.0 FTE / CLASS | D14: 19871
C18: ANNUAL AVERAGE | I18: ANNUAL AVERAGE
A19: Salary Type: | C19: SALARY | D19: Professional Learning | E19: OTHER | F19: TOTAL | G19: PAYROLL TAXES & | H19: MEDICAL | I19: TOTAL
B20: FY20 COLA | C20: 1.0 FTE | D20: Enrichment | E20: SALARY* | F20: SALARY | G20: OTHER BENEFITS | H20: BENEFITS | I20: COMPENSATION
A21: Certificated Instructional Staff - 1.0 FTE | B21: 0.045 | C21: =79477 -> 79477 | D21: =4262 -> 4262 | E21: =3111.25 -> 3111.25 | F21: =SUM(C21:E21) -> 86850.25 | G21: =F21*$C$9 -> 21840.23237 | H21: =D13 -> 14155 | I21: =SUM(F21:H21) -> 122845.4824
A22: Certificated Admin Staff (not Principals) - 1.0 FTE | B22: 0 | C22: =118617.59*(100%+B22) -> 118617.59 | D22: =1804.25 -> 1804.25 | E22: =688.82 -> 688.82 | F22: =SUM(C22:E22) -> 121110.66 | G22: =F22*$C$9 -> 30455.69767 | H22: =D13 -> 14155 | I22: =SUM(F22:H22) -> 165721.3577
A23: Classified Staff (KAEOP) - 1.0 FTE | B23: 0 | C23: =44038.74*(100%+B23) -> 44038.74 | D23: n/a | E23: n/a | F23: =SUM(C23:E23) -> 44038.74 | G23: =F23*$C$10 -> 10052.72318 | H23: =D14 -> 19871 | I23: 73962.46318
A24: Classified Staff (KAP) - 1.0 FTE | B24: 0.05 | C24: =41942.76*(100%+B24) -> 44039.898 | D24: n/a | E24: n/a | F24: 44039.898 | G24: =F24*$C$10 -> 10052.98752 | H24: =D14 -> 19871 | I24: 73963.88552
A25: Classified Staff (Prof Tech) - 1.0 FTE | B25: 0 | C25: =74851.56*(100%+B25) -> 74851.56 | D25: n/a | E25: =365 -> 365 | F25: =SUM(C25:E25) -> 75216.56 | G25: 17169.68415 | H25: =D14 -> 19871 | I25: 112257.2442
D27: * Avg CIS Salary, not incl PLE | F27: =C21+E21 -> 82588.25 | G27: =F27*C9 -> 20768.46723 | H27: =H21 -> 14155 | I27: =SUM(F27:H27) -> 117511.7172
E28: Avg Hrly Rate, CIS | F28: =F27/SUM(187*7.5) -> 58.88645276 | I28: =I27/SUM(187*7.5) -> 83.78732066
A29: (rates unknown at this time 3/4/19) | B29: TBD!
E30: *other salary includes, commitment, longevity, and other stipends for Average Salary
D32: AVERAGE | G32: AVERAGE | H32: AVERAGE
C33: DAILY | D33: HOURLY | E33: PAYROLL TAXES & | F33: MEDICAL | G33: DAILY | H33: HOURLY
C34: RATE | D34: RATE | E34: OTHER BENEFITS | F34: BENEFITS | G34: COMPENSATION | H34: COMPENSATION
A35: Classified / Para | D35: =20.17 -> 20.17 | E35: =D35*C10 -> 4.6042059 | F35: =D13/1345 -> 10.52416357 | H35: =SUM(D35:F35) -> 35.29836947
A38: Certificated Substitute - Full Day | C38: 154 | E38: =C38*C11 -> 12.85438 | F38: n/a | G38: =C38+E38 -> 166.85438
A39: Certificated Substitute - Half Day | C39: 88 | E39: =C39*C11 -> 7.34536 | F39: n/a | G39: =C39+E39 -> 95.34536
A41: Classified Substitute - Title, LAP, ELL, IP, IC | D41: 14.6 | E41: =D41*C12 -> 1.218662 | H41: =SUM(D41:F41) -> 15.818662
A42: Classified Substitute - SC, SA, ASC, ECE, LINK, BLSP | D42: 15.01 | E42: =D42*C12 -> 1.2528847 | H42: =SUM(D42:F42) -> 16.2628847

Sheet menus (hidden)
B1: New Prgm-Type In | D1: Type-In / Overwrite | E1: Type-In / Overwrite | F1: Type-In / Overwrite | H1: Type-In / Overwrite | J1: Type-In / Overwrite | K1: 260 | M1: n/a | Q1: n/a
A2: 164 | B2: 0164 - Basic Ed-Dual Language Support | C2: 535 | D2: 535-Career & Tech Ed (CTE) | E2: 21-Supervision | F2: 0100-Superintendent | G2: 490 | H2: 0490 - KSD-Food Services | J2: Corbley, Christine | K2: 212 | M2: 100-Carriage Crest | N2: 100 | O2: Superintendent | Q2: 0100-Superintendent
A3: 165 | B3: 0165 - Basic Ed: ELL Support | C3: 706 | D3: 706-Finance | E3: 22-Library | F3: 0200-District Operations | G3: 590 | H3: 0590 - KSD-Student Transportation | J3: Fields, Teresa | K3: 190 | M3: 103-Cedar Valley | N3: 110 | O3: Minority Achievement | Q3: 0110-Minority Achievement
A4: 2100 | B4: 2100 - Special Education | C4: 708 | D4: 708-Food Services | E4: 23-Principal's Ofc | F4: 0320-Textbook Adoption | G4: 730 | H4: 0730 - KSD-Print Shop | J4: Harmon, Jewelle | K4: 189 | M4: 106-Covington | N4: 200 | O4: District Operations | Q4: 0200-District Operations
A5: 2110 | B5: 2110 - SpEd One on One | C5: 709 | D5: 709-Human Resources | E5: 24-Guidance | F5: 0500-Dir of Early Learning | G5: 5000 | H5: 5000 - General Materials & Supplies | J5: Heath, Randy | M5: 109-Crestwood | N5: 320 | O5: Textbook Adoption | Q5: 0320-Textbook Adoption
A6: 2120 | B6: 2120 - SpEd - SLP Assistants | C6: 710 | D6: 710-Info Technology (IT) | E6: 25-Pupil Mgmt/Safety | F6: 0550-SIO, HS | G6: 5010 | H6: 5010 - Food & Beverage | J6: Jones, Jennifer | M6: 112-East Hill | N6: 500 | O6: Dir of Early Learning | Q6: 0500-Dir of Early Learning
A7: 2130 | B7: 2130 - SpEd - COTA/PTA | C7: 711 | D7: 711-Teaching & Learning | E7: 26-Health Svcs | F7: 0590-Kinder to College | G7: 5080 | H7: 5080 - Postage | J7: Martin, Moriah | M7: 115-Emerald Park | N7: 530 | O7: Summer School | Q7: 530-Summer School
A8: 2200 | B8: 2200 - SpEd - Infants & Toddlers | C8: 713 | D8: 713-ELL | E8: 27-Teaching | F8: 0600-Chief Accountability Ofcr | G8: 5700 | H8: 5700 - Textbooks (Act 33 only) | J8: Pan, Spencer | M8: 118-Fairwood | N8: 550 | O8: SIO, HS | Q8: 0550-SIO, HS
A9: 2450 | B9: 2450 - SpEd - IDEA B | C9: 718 | D9: 718-Inclusive Education | E9: 28-Extracurricular | F9: 0620-Chief Op's & Acad Supp | G9: 5710 | H9: 5710 - Clsrm Resource Matl's (Act 33 only) | J9: Paxton, Lori | M9: 121-G. Daniel | N9: 590 | O9: Kinder to College | Q9: 0590-Kinder to College
A10: 2451 | B10: 2451 - SpEd - Preschool Sctn 619 | C10: 719 | D10: 719-Student & Family Support | E10: 31-Prof Dev | F10: 0650-iGrad | G10: 5900 | H10: 5900 - Theft Sensitive Items | J10: Popp, Rona | M10: 124-Glenridge | N10: 600 | O10: Chief Accountability Officer | Q10: 0600-Chief Accountability Officer
A11: 3151 | B11: 3151 - CTE, Admin | C11: 720 | D11: 720-Superintendent | F11: 0700-SIO, MS | G11: 7000 | H11: 7000 - Contractual Services | J11: Vela, Israel | M11: 127-Grass Lake | N11: 650 | O11: iGrad | Q11: 0650-iGrad
A12: 3152 | B12: 3152 - CTE, Secondary Support | C12: 721 | D12: 721-Staff Development | F12: 0850-SIO, Elem #1 | G12: 7030 | H12: 7030 - Personal Svcs Contracts | J12: West, DeNelle | M12: 130-Horizon | N12: 700 | O12: SIO, MS | Q12: 0700-SIO, MS
A13: 3154 | B13: 3154 - CTE, Computer Sci | F13: 0880-SIO, Elem #2 | G13: 7050 | H13: 7050 - Registration/Other Fees | J13: Williams, Nina (Will) | M13: 133-Jenkins Creek | N13: 850 | O13: SIO, Elem#1 | Q13: 0850-SIO, Elem#1
A14: 3155 | B14: 3155 - CTE, Career Centers | F14: 1000-Carriage Crest | G14: 8000 | H14: 8000 - Out-of-District Travel | M14: 136-Kent | N14: 880 | O14: SIO, Elem#2 | Q14: 0880-SIO, Elem#2
A15: 3156 | B15: 3156 - CTE, Aviation | F15: 1030-Cedar Valley | G15: 8010 | H15: 8010 - In-District Travel | M15: 139-Kent Valley ELC | N15: 1000 | O15: Carriage Crest | Q15: 1000-Carriage Crest
A16: 3157 | B16: 3157 - CTE, Horticulture | F16: 1060-Covington | G16: 9000 | H16: 9000 - Capital Equipment > $5,000 | M16: 142-Lake Youngs | N16: 1030 | O16: Cedar Valley | Q16: 1030-Cedar Valley
A17: 3158 | B17: 3158 - CTE, Business Ed | F17: 1090-Crestwood | M17: 145-Martin Sortun | N17: 1060 | O17: Covington | Q17: 1060-Covington
A18: 3159 | B18: 3159 - CTE, Marketing | F18: 1120-East Hill | M18: 148-Meadow Ridge | N18: 1090 | O18: Crestwood | Q18: 1090-Crestwood
A19: 3160 | B19: 3160 - CTE , Auto Tech | F19: 1150-Emerald Park | M19: 151-Meridian | N19: 1120 | O19: East Hill | Q19: 1120-East Hill
A20: 3161 | B20: 3161 - CTE, Visual Comm | F20: 1180-Fairwood | M20: 154-Millennium | N20: 1150 | O20: Emerald Park | Q20: 1150-Emerald Park
A21: 3162 | B21: 3162 - CTE, Health Careers | F21: 1210-G. Daniel | M21: 157-Neely O'Brien | N21: 1180 | O21: Fairwood | Q21: 1180-Fairwood
A22: 3163 | B22: 3163 - CTE, Culinary Arts | F22: 1240-Glenridge | M22: 160-Panther Lake | N22: 1210 | O22: G. Daniel | Q22: 1210-G. Daniel
A23: 3164 | B23: 3164 - CTE, American Sign Lang | F23: 1270-Grass Lake | M23: 163-Park Orchard | N23: 1240 | O23: Glenridge | Q23: 1240-Glenridge
A24: 3165 | B24: 3165 - CTE, Engineering | F24: 1300-Horizon | M24: 166-Pine Tree | N24: 1270 | O24: Grass Lake | Q24: 1270-Grass Lake
A25: 3166 | B25: 3166 - CTE, Family & Consumer Sci | F25: 1330-Jenkins Creek | M25: 169-Ridgewood | N25: 1300 | O25: Horizon | Q25: 1300-Horizon
A26: 3167 | B26: 3167 - CTE, Manufacturing | F26: 1360-Kent | M26: 172-Sawyer Woods | N26: 1330 | O26: Jenkins Creek | Q26: 1330-Jenkins Creek
A27: 3168 | B27: 3168 - CTE, Applied Programs | F27: 1390-Kent Valley ELC | M27: 175-Scenic Hill | N27: 1360 | O27: Kent | Q27: 1360-Kent
A28: 3169 | B28: 3169 - CTE, Cosmetology | F28: 1420-Lake Youngs | M28: 178-Soos Creek | N28: 1390 | O28: Kent Valley ELC | Q28: 1390-Kent Valley ELC
A29: 3170 | B29: 3170 - CTE, Media & Theatre Tech | F29: 1450-Martin Sortun | M29: 181-Springbrook | N29: 1420 | O29: Lake Youngs | Q29: 1420-Lake Youngs
A30: 3171 | B30: 3171 - CTE, Welding | F30: 1480-Meadow Ridge | M30: 184-Sunrise | N30: 1450 | O30: Martin Sortun | Q30: 1450-Martin Sortun
A31: 3172 | B31: 3172 - CTE, Wood Tech | F31: 1510-Meridian | M31: 300-Cedar Heights MS | N31: 1480 | O31: Meadow Ridge | Q31: 1480-Meadow Ridge
A32: 3173 | B32: 3173 - CTE, Public Service | F32: 1540-Millennium | M32: 305-Mattson MS | N32: 1510 | O32: Meridian | Q32: 1510-Meridian
A33: 3860 | B33: 3860 - C.Perkins, Voc Fed | F33: 1570-Neely O'Brien | M33: 310-Meeker MS | N33: 1540 | O33: Millennium | Q33: 1540-Millennium
A34: 3901 | B34: 3901 - NSF Aerospace Career Ed, KPA | F34: 1600-Panther Lake | M34: 315-Meridian MS | N34: 1570 | O34: Neely O'Brien | Q34: 1570-Neely O'Brien
A35: 5150 | B35: 5150 - Title I-A, Basic Prgm | F35: 1630-Park Orchard | M35: 320-Mill Creek MS | N35: 1600 | O35: Panther Lake | Q35: 1600-Panther Lake
A36: 5151 | B36: 5151 - Title I-A, Homeless | F36: 1660-Pine Tree | M36: 325-Northwood MS | N36: 1630 | O36: Park Orchard | Q36: 1630-Park Orchard
A37: 5152 | B37: 5152 - Title I-A, Early Lrng | F37: 1690-Ridgewood | M37: 400-Kent -Meridian HS | N37: 1660 | O37: Pine Tree | Q37: 1660-Pine Tree
A38: 5153 | B38: 5153 - Title I-A, Parent Engagement Req | F38: 1720-Sawyer Woods | M38: 401-TOP (Outreach Program) | N38: 1690 | O38: Ridgewood | Q38: 1690-Ridgewood
A39: 5154 | B39: 5154 - Title I-A, Foster Care | F39: 1750-Scenic Hill | M39: 410-Kentlake HS | N39: 1720 | O39: Sawyer Woods | Q39: 1720-Sawyer Woods
A40: 5155 | B40: 5155 - Title I-A, Neglected Children | F40: 1780-Soos Creek | M40: 415-Kentridge HS | N40: 1750 | O40: Scenic Hill | Q40: 1750-Scenic Hill
A41: 5156 | B41: 5156 - Title I-A, Private Schools | F41: 1810-Springbrook | M41: 420-Kentwood HS | N41: 1780 | O41: Soos Creek | Q41: 1780-Soos Creek
A42: 5159 | B42: 5159 - Title I-A, Schl/Dist Prof Dev | F42: 1840-Sunrise | M42: 500-Kent Mtn View Academy | N42: 1810 | O42: Springbrook | Q42: 1810-Springbrook
A43: 5161 | B43: 5161 - Title I-A, Parent Engagement | F43: 2000-Business Services | M43: 503-Kent Phoenix Academy | N43: 1840 | O43: Sunrise | Q43: 1840-Sunrise
A44: 5175 | B44: 5175 - Title I - Focus Schools | F44: 2020-Grant Indirects Budget | M44: 504-iGrad | N44: 2000 | O44: Business Services | Q44: 2000-Business Services
A45: 5213 | B45: 5213 - Title IIA, Professional Dev | F45: 2050-Finance Department | M45: 505-Regional Justice Center | N45: 2020 | O45: Grant Indirects Budget | Q45: 2020-Grant Indirects Budget
A46: 5214 | B46: 5214 - Title IIA, Private Schools | F46: 2050-Finance (Budget Only) | M46: 520-Summer School Elem. | N46: 2050 | O46: Finance Department | Q46: 2050-Finance Department
A47: 5234 | B47: 5234 - Title IV-A, Student Support | F47: 2190-Section 125 Svc Fees | M47: 530-Summer School | N47: 2050 | O47: Finance (Budget Only) | Q47: 2050-Finance (Budget Only)
A48: 5520 | B48: 5520 - LAP Base Allocation | F48: 2240-SL/VL Buy-Back | M48: All Elementary | N48: 2190 | O48: Section 125 Svc Fees | Q48: 2190-Section 125 Svc Fees
A49: 5521 | B49: 5521 - Readiness to Learn (LAP) | F49: 2250-Reimbursed Mileage | M49: All Middle | N49: 2240 | O49: SL/VL Buy | P49: Back | Q49: 2240-SL/VL Buy-Back
A50: 5522 | B50: 5522 - LAP High Poverty | F50: 2255-TSA Matching | M50: All High | N50: 2250 | O50: Reimbursed Mileage | Q50: 2250-Reimbursed Mileage
A51: 5802 | B51: 5802 - Non-Title I Focus Schools | F51: 2550-Homeless Transportation | M51: All Secondary | N51: 2255 | O51: TSA Matching | Q51: 2255-TSA Matching
A52: 5803 | B52: 5803 - Non-Title I Priority Schools | F52: 2950-ECEAP | M52: All Schools | N52: 2550 | O52: Homeless Transportation | Q52: 2550-Homeless Transportation
A53: 5820 | B53: 5820 - Nat'l Board Certification | F53: 2970-School Improv Prgms | N53: 2950 | O53: ECEAP | Q53: 2950-ECEAP
A54: 5830 | B54: 5830 - WA First, Robotics | F54: 3000-Cedar Heights MS | N54: 2950 | O54: ECEAP | Q54: 2950-ECEAP
A55: 5840 | B55: 5840 - Beg. Ed Support Team (BEST) | F55: 3050-Mattson MS | N55: 2970 | O55: School Improv Prgms | Q55: 2970-School Improv Prgms
A56: 5874 | B56: 5874 - Educ Leadership Intern Prgm | F56: 3100-Meeker MS | N56: 3000 | O56: Cedar Heights MS | Q56: 3000-Cedar Heights MS
A57: 5880 | B57: 5880 - TPEP Teacher Trng Funds | F57: 3150-Meridian MS | N57: 3050 | O57: Mattson MS | Q57: 3050-Mattson MS
A58: 5885 | B58: 5885 - TPEP Admin. Training | F58: 3200-Mill Creek MS | N58: 3100 | O58: Meeker MS | Q58: 3100-Meeker MS
A59: 6418 | B59: 6418 - Title III, Limited English Prof. | F59: 3250-Northwood MS | N59: 3150 | O59: Meridian MS | Q59: 3150-Meridian MS
A60: 6500 | B60: 6500 - Transitional Bilingual (ELL) | F60: 3330-Substitute Salaries | N60: 3200 | O60: Mill Creek MS | Q60: 3200-Mill Creek MS
A61: 6899 | B61: 6899 - Title VII, Indian Ed | F61: 3340-Overload Sub Pay | N61: 3250 | O61: Northwood MS | Q61: 3250-Northwood MS
A62: 6995 | B62: 6995 - ECEAP | F62: 3430-Class Coverage | N62: 3330 | O62: Substitute Salaries | Q62: 3330-Substitute Salaries
A63: 7400 | B63: 7400 - Highly Capable | F63: 3450-Staff Contingency/Unfilled | N63: 3340 | O63: Overload Sub Pay | Q63: 3340-Overload Sub Pay
A64: 7902 | B64: 7902 - Native American Support | F64: 3480-Class-Extra Pay | N64: 3430 | O64: Class Coverage | Q64: 3430-Class Coverage
A65: 7904 | B65: 7904 - EWIS - ESD Reimbursement | F65: 3490-Cert-Extra Pay | N65: 3450 | O65: Staff Contingency/Unfilled | Q65: 3450-Staff Contingency/Unfilled
A66: 7906 | B66: 7906 - Homeless Support | F66: 3500-Principals-Travel | N66: 3480 | O66: Class | P66: Extra Pay | Q66: 3480-Class-Extra Pay
A67: 7914 | B67: 7914 - Refugee School Impact Grant | F67: 3510-EDL Incentive | N67: 3490 | O67: Cert | P67: Extra Pay | Q67: 3490-Cert-Extra Pay
A68: 7922 | B68: 7922 - PSESD - Gates Early Math | F68: 3530-Attendance Incentive | N68: 3500 | O68: Principals | P68: Travel | Q68: 3500-Principals-Travel
A69: 7938 | B69: 7938 - Schoolhouse WA Homeless | F69: 3710-Committment Stipend | N69: 3510 | O69: EDL Incentive | Q69: 3510-EDL Incentive
A70: 7958 | B70: 7958 - GYO Infrastructure | F70: 3720-Longevity Stipend | N70: 3530 | O70: Attendance Incentive | Q70: 3530-Attendance Incentive
A71: 7982 | B71: 7982 - Refugee Support | F71: 3730-Completion Stipend | N71: 3710 | O71: Committment Stipend | Q71: 3710-Committment Stipend
F72: 3750-Para Annual Stipend | N72: 3720 | O72: Longevity Stipend | Q72: 3720-Longevity Stipend
F73: 3760-Ed Staff Assoc Stipends | N73: 3730 | O73: Completion Stipend | Q73: 3730-Completion Stipend
F74: 3770-Employee Assist Prgm | N74: 3750 | O74: Para Annual Stipend | Q74: 3750-Para Annual Stipend
F75: 3780-IEP Stipends | N75: 3760 | O75: Ed Staff Assoc Stipends | Q75: 3760-Ed Staff Assoc Stipends
F76: 4000-Kent -Meridian HS | N76: 3770 | O76: Employee Assist Prgm | Q76: 3770-Employee Assist Prgm
F77: 4001-TOP (Outreach Program) | N77: 3780 | O77: IEP Stipends | Q77: 3780-IEP Stipends
F78: 4100-Kentlake HS | N78: 4000 | O78: Kent | P78: Meridian HS | Q78: 4000-Kent -Meridian HS
F79: 4150-Kentridge HS | N79: 4001 | O79: TOP (Outreach Program) | Q79: 4001-TOP (Outreach Program)
F80: 4200-Kentwood HS | N80: 4100 | O80: Kentlake HS | Q80: 4100-Kentlake HS
F81: 4420-Itinerant Specialists | N81: 4150 | O81: Kentridge HS | Q81: 4150-Kentridge HS
F82: 4500-Language Arts | N82: 4200 | O82: Kentwood HS | Q82: 4200-Kentwood HS
F83: 4505-Secondary Lang Arts | N83: 4420 | O83: Itinerant Specialists | Q83: 4420-Itinerant Specialists
F84: 4510-Social Studies | N84: 4500 | O84: Language Arts | Q84: 4500-Language Arts
F85: 4515-Secondary Social Studies | N85: 4505 | O85: Secondary Lang Arts | Q85: 4505-Secondary Lang Arts
F86: 4520-World Language | N86: 4510 | O86: Social Studies | Q86: 4510-Social Studies
F87: 4530-Math | N87: 4515 | O87: Secondary Social Studies | Q87: 4515-Secondary Social Studies
F88: 4540-Science | N88: 4520 | O88: World Language | Q88: 4520-World Language
F89: 4550-Health Fitness | N89: 4530 | O89: Math | Q89: 4530-Math
F90: 4560-Fine Arts | N90: 4540 | O90: Science | Q90: 4540-Science
F91: 4580-Gifted Curriculum | N91: 4550 | O91: Health Fitness | Q91: 4550-Health Fitness
F92: 4600-Cert/Class Staff Dev | N92: 4560 | O92: Fine Arts | Q92: 4560-Fine Arts
F93: 4630-Classified Staff Development | N93: 4580 | O93: Gifted Curriculum | Q93: 4580-Gifted Curriculum
F94: 4640-Dist/Centralized Cert Training | N94: 4600 | O94: Cert/Class Staff Dev | Q94: 4600-Cert/Class Staff Dev
F95: 4650-Cert Bld-Based Trnr Of Trnrs | N95: 4630 | O95: Classified Staff Development | Q95: 4630-Classified Staff Development
F96: 4660-Teacher Assistance Program | N96: 4640 | O96: Dist/Centralized Cert Training | Q96: 4640-Dist/Centralized Cert Training
F97: 4690-Diversity Training | N97: 4650 | O97: Cert Bld | P97: Based Trnr Of Trnrs | Q97: 4650-Cert Bld-Based Trnr Of Trnrs
F98: 4800-Curriculum Alignment | N98: 4660 | O98: Teacher Assistance Program | Q98: 4660-Teacher Assistance Program
F99: 4810-Research | N99: 4690 | O99: Diversity Training | Q99: 4690-Diversity Training
F100: 4820-Assessment | N100: 4800 | O100: Curriculum Alignment | Q100: 4800-Curriculum Alignment
F101: 4840-Report Cards | N101: 4810 | O101: Research | Q101: 4810-Research
F102: 4860-Title I | N102: 4820 | O102: Assessment | Q102: 4820-Assessment
F103: 4870-LAP | N103: 4840 | O103: Report Cards | Q103: 4840-Report Cards
F104: 4880-Student Services | N104: 4860 | O104: Title I | Q104: 4860-Title I
F105: 4881-Race to the Top | N105: 4870 | O105: LAP | Q105: 4870-LAP
F106: 4900-Homeless | N106: 4880 | O106: Student Services | Q106: 4880-Student Services
F107: 4910-Health Services | N107: 4881 | O107: Race to the Top | Q107: 4881-Race to the Top
F108: 4990-Running Start | N108: 4900 | O108: Homeless | Q108: 4900-Homeless
F109: 5000-Kent Mtn View Academy | N109: 4910 | O109: Health Services | Q109: 4910-Health Services
F110: 5030-Kent Phoenix Academy | N110: 4990 | O110: Running Start | Q110: 4990-Running Start
F111: 5040-iGrad | N111: 5000 | O111: Kent Mtn View Academy | Q111: 5000-Kent Mtn View Academy
F112: 5050-Regional Justice Center | N112: 5030 | O112: Kent Phoenix Academy | Q112: 5030-Kent Phoenix Academy
F113: 5100-Indian Education | N113: 5040 | O113: iGrad | Q113: 5040-iGrad
F114: 5200-SpEd Administration | N114: 5050 | O114: Regional Justice Center | Q114: 5050-Regional Justice Center
F115: 5210-SpEd Support | N115: 5100 | O115: Indian Education | Q115: 5100-Indian Education
F116: 5220-SpEd In-Service Training | N116: 5200 | O116: SpEd Administration | Q116: 5200-SpEd Administration
F117: 5230-Student Transp | N117: 5200 | O117: SpEd Administration | Q117: 5200-SpEd Administration
F118: 5240-SpEd Unfilled & Unassigned | N118: 5210 | O118: SpEd Support | Q118: 5210-SpEd Support
F119: 5250-SpEd Pymt Out of District | N119: 5210 | O119: SpEd Support Services | Q119: 5210-SpEd Support Services
F120: 5270-SpEd Extended Schl Year | N120: 5220 | O120: SpEd In | P120: Service Training | Q120: 5220-SpEd In-Service Training
F121: 5290-SpEd Portion, Sch Based Med | N121: 5230 | O121: Student Transp | Q121: 5230-Student Transp
F122: 5310-SpEd Birth to 3 Agency Co | N122: 5240 | O122: SpEd Unfilled & Unassigned | Q122: 5240-SpEd Unfilled & Unassigned
F123: 5330-Home & Hospital Instr | N123: 5250 | O123: SpEd Pymt Out of District | Q123: 5250-SpEd Pymt Out of District
F124: 5340-Assistive Technology | N124: 5270 | O124: SpEd Extended Schl Year | Q124: 5270-SpEd Extended Schl Year
F125: 5350-SpEd Suppl Costs | N125: 5290 | O125: SpEd Portion, Sch Based Med | Q125: 5290-SpEd Portion, Sch Based Med
F126: 5360-Compensatory Time | N126: 5310 | O126: SpEd Birth to 3 Agency Co | Q126: 5310-SpEd Birth to 3 Agency Co
F127: 5380-Developmentally Disabled | N127: 5330 | O127: Home & Hospital Instr | Q127: 5330-Home & Hospital Instr
F128: 5390-SpEd Summer Assessment | N128: 5340 | O128: Assistive Technology | Q128: 5340-Assistive Technology
F129: 5400-Bilingual/ELL | N129: 5350 | O129: SpEd Suppl Costs | Q129: 5350-SpEd Suppl Costs
F130: 5510-CTE, Admin | N130: 5360 | O130: Compensatory Time | Q130: 5360-Compensatory Time
F131: 5520-CTE, Prgm Support | N131: 5380 | O131: Developmentally Disabled | Q131: 5380-Developmentally Disabled
F132: 5530-CTE, Career Centers | N132: 5390 | O132: SpEd Summer Assessment | Q132: 5390-SpEd Summer Assessment
F133: 5540-CTE, Unfilled & Unassigned | N133: 5400 | O133: Bilingual/ELL | Q133: 5400-Bilingual/ELL
F134: 5550-CTE, Landscaping | N134: 5400 | O134: Bilingual Ed/ELL | Q134: 5400-Bilingual Ed/ELL
F135: 5570-CTE, Business Ed | N135: 5510 | O135: CTE, Admin | Q135: 5510-CTE, Admin
F136: 5610-CTE, Marketing | N136: 5520 | O136: CTE, Prgm Support | Q136: 5520-CTE, Prgm Support
F137: 5650-CTE , Auto Tech | N137: 5530 | O137: CTE, Career Centers | Q137: 5530-CTE, Career Centers
F138: 5690-CTE, Culinary Arts | N138: 5540 | O138: CTE, Unfilled & Unassigned | Q138: 5540-CTE, Unfilled & Unassigned
F139: 5710-CTE, Engineering | N139: 5550 | O139: CTE, Landscaping | Q139: 5550-CTE, Landscaping
F140: 5720-CTE, Visual Comm | N140: 5570 | O140: CTE, Business Ed | Q140: 5570-CTE, Business Ed
F141: 5730-CTE, Manufacturing | N141: 5610 | O141: CTE, Marketing | Q141: 5610-CTE, Marketing
F142: 5740-CTE, Applied Programs | N142: 5650 | O142: CTE , Auto Tech | Q142: 5650-CTE , Auto Tech
F143: 5750-CTE, Cosmetology | N143: 5690 | O143: CTE, Culinary Arts | Q143: 5690-CTE, Culinary Arts
F144: 5760-CTE, Ind.Co-Op Ed (Ice) | N144: 5710 | O144: CTE, Engineering | Q144: 5710-CTE, Engineering
F145: 5780-CTE, Welding | N145: 5720 | O145: CTE, Visual Comm | Q145: 5720-CTE, Visual Comm
F146: 5850-CTE, Wood Tech | N146: 5730 | O146: CTE, Manufacturing | Q146: 5730-CTE, Manufacturing
F147: 5870-CTE, Health Careers | N147: 5740 | O147: CTE, Applied Programs | Q147: 5740-CTE, Applied Programs
F148: 5930-CTE, School-To-Work | N148: 5750 | O148: CTE, Cosmetology | Q148: 5750-CTE, Cosmetology
F149: 5960-C.Perkins, Voc Fed | N149: 5760 | O149: CTE, Ind.Co | P149: Op Ed (Ice) | Q149: 5760-CTE, Ind.Co-Op Ed (Ice)
F150: 5980-CTE, Family & Consumer Sci | N150: 5780 | O150: CTE, Welding | Q150: 5780-CTE, Welding
F151: 6000-CTE, Media & Theatre Tech | N151: 5850 | O151: CTE, Wood Tech | Q151: 5850-CTE, Wood Tech
F152: 6020-CTE, Aviation | N152: 5870 | O152: CTE, Health Careers | Q152: 5870-CTE, Health Careers
F153: 6030-CTE, American Sign Lang | N153: 5930 | O153: CTE, School | P153: To | Q153: 5930-CTE, School-To-Work
F154: 7290-Becca Bill Expenses | N154: 5960 | O154: C.Perkins, Voc Fed | Q154: 5960-C.Perkins, Voc Fed
F155: 7300-Contract School | N155: 5980 | O155: CTE, Family & Consumer Sci | Q155: 5980-CTE, Family & Consumer Sci
F156: 7330-Int'l Baccalaureate | N156: 6000 | O156: CTE, Media & Theatre Tech | Q156: 6000-CTE, Media & Theatre Tech
F157: 7331-IB Admin Fees | N157: 6020 | O157: CTE, Aviation | Q157: 6020-CTE, Aviation
F158: 7380-Credit Recovery | N158: 6030 | O158: CTE, American Sign Lang | Q158: 6030-CTE, American Sign Lang
F159: 7400-H/R General Admin. | N159: 7290 | O159: Becca Bill Expenses | Q159: 7290-Becca Bill Expenses
F160: 7440-Labor Relations | N160: 7300 | O160: Contract School | Q160: 7300-Contract School
F161: 7470-New Teacher Training | N161: 7330 | O161: Int'l Baccalaureate | Q161: 7330-Int'l Baccalaureate
F162: 7540-Title II, Instructional Svc | N162: 7331 | O162: IB Admin Fees | Q162: 7331-IB Admin Fees
F163: 7550-Prgm/ Staff Development | N163: 7380 | O163: Credit Recovery | Q163: 7380-Credit Recovery
F164: 7560-Core Curriculum | N164: 7400 | O164: H/R General Admin. | Q164: 7400-H/R General Admin.
F165: 7570-Program Evaluation | N165: 7440 | O165: Labor Relations | Q165: 7440-Labor Relations
F166: 7580-Curriculum/TOSA | N166: 7470 | O166: New Teacher Training | Q166: 7470-New Teacher Training
F167: 7600-Reading/TOSA | N167: 7540 | O167: Title II, Instructional Svc | Q167: 7540-Title II, Instructional Svc
F168: 7610-Boeing Math/Science Grants | N168: 7550 | O168: Prgm/ Staff Development | Q168: 7550-Prgm/ Staff Development
F169: 7620-Medicaid Costs | N169: 7560 | O169: Core Curriculum | Q169: 7560-Core Curriculum
F170: 7630-Summer School,Gen'l Oper. | N170: 7570 | O170: Program Evaluation | Q170: 7570-Program Evaluation
F171: 7635-AVID Summer Institute | N171: 7580 | O171: Curriculum/TOSA | Q171: 7580-Curriculum/TOSA
F172: 7640-Summer School-Elem | N172: 7600 | O172: Reading/TOSA | Q172: 7600-Reading/TOSA
F173: 7650-Summer School-MS | N173: 7610 | O173: Boeing Math/Science Grants | Q173: 7610-Boeing Math/Science Grants
F174: 7660-Summer School-HS | N174: 7620 | O174: Medicaid Costs | Q174: 7620-Medicaid Costs
N175: 7630 | O175: Summer School,Gen'l Oper. | Q175: 7630-Summer School,Gen'l Oper.
N176: 7635 | O176: AVID | Q176: 7635-AVID
N177: 7640 | O177: Summer School Elem. | Q177: 7640-Summer School Elem.
N178: 7640 | O178: Summer School | P178: Elem | Q178: 7640-Summer School-Elem
N179: 7650 | O179: Summer School | P179: MS | Q179: 7650-Summer School-MS
N180: 7660 | O180: Summer School | P180: HS | Q180: 7660-Summer School-HS

Sheet Indirect Rates
A1: Kent School District Indirect Rates 2019-20
A3: School districts may claim a percentage of selected federal and state grant awards in order to recover indirect expenses associated with general program operations. KSD requires allowable indirects be taken on all grant and categorical programs unless the district’s Exec. Director of Finance has approved an exception. Below is a list of district grants with their 2019-20 indirect percentage rates.
A4: 4.05% Indirects – KSD Federal Restricted Indirect Rate for 2019-20 | C4: Prog. #
A5: LAP - Learning Assistance Program | C5: 5520-5522
A6: OSSI Targeted 3+ Schools (Title I) | C6: 5174
A7: Perkins | C7: 3860
A8: Refugee School Impact Grant | C8: 7914
A9: Special Ed IDEA-B Sec 611 & Preschool Sec 619 Flow-Thru | C9: 2450-2451
A10: Title I-A Improving Basic Programs | C10: 5150-5161
A11: Title II-A Professional Development | C11: 5213-5214
A12: Title III Limited English Proficiency | C12: 6418
A13: Title IV-A Student Support & Academic Enrichment | C13: 5234
A14: Title VI Indian Ed | C14: 6899
A15: Title X-C Homeless Mini-Grant | C15: 5172
A18: 7% Indirects – % Determined by State or Federal Agency | C18: Prog. #
A19: BEST - Beginning Educator Support Team | C19: 5840
A20: OSSI Comprehensive Low Grad (Non-Title I) | C20: 5804
A21: OSSI Targeted 3+ (Non-Title I) | C21: 5806
A22: OSSI Comprehensive School (Non-Title I) | C22: 5808
A23: TPEP Teacher Training Funds | C23: 5880
A26: Calculating Indirect Amounts
A27: To calculate indirect amounts, divide the grant award by 1.00 plus the indirect percentage rate. The difference between the calculated amount and the total grant is the amount used for indirect expenditures.
A29: Example - Total grant award is $750,000 and the indirect rate is 4.05%
A31: $750,000 ¸ 1.0405 = $720,808 (round up) ® amount of award available for direct program expenditures
A32: $750,000 - $720,808 = $29,192® amount of award that may be claimed for indirect expenditures
